fUSD/lending_fUSD_20250205
["ID","MTS","AMOUNT","RATE_DAILY","PERIOD"]
[351750393,1738776642119,-533.89287663,0.00011998,2]
[351750395,1738776642129,-500.0,0.00011998,2]
[351750397,1738776642138,-500.0,0.00011998,2]
[351750399,1738776642148,-500.0,0.00011998,2]
[351750401,1738776642158,-500.0,0.00011998,2]
[351750403,1738776642167,-500.0,0.00011998,2]
[351750405,1738776642176,-500.0,0.00011998,2]
[351750407,1738776642186,-500.0,0.00011998,2]
[351750409,1738776642195,-500.0,0.00011998,2]
[351750411,1738776642205,-506.95295401,0.00011998,2]
[351750413,1738776642214,-500.0,0.00011998,2]
[351750415,1738776642224,-500.0,0.00011998,2]
[351750418,1738776642234,-500.0,0.00011998,2]
[351750420,1738776642245,-500.0,0.00011998,2]
[351750421,1738776642255,-500.0,0.00011998,2]
[351750424,1738776642264,-500.0,0.00011998,2]
[351750426,1738776642274,-547.5688147,0.00011998,2]
[351750428,1738776642284,-500.0,0.00011998,2]
[351750430,1738776642293,-338.08054403,0.00011998,2]
[351750432,1738776642302,-500.0,0.00011998,2]
[351750434,1738776642312,-504.70686205,0.00011998,2]
[351750435,1738776642321,-507.9152721,0.00011998,2]
[351750437,1738776642330,-500.0,0.00011998,2]
[351750440,1738776642341,-500.0,0.00011998,2]
[351750441,1738776642351,-500.0,0.00011998,2]
[351750443,1738776642360,-500.0,0.00011998,2]
[351750445,1738776642370,-500.0,0.00011998,2]
[351750448,1738776642379,-500.0,0.00011998,2]
[351750449,1738776642389,-500.0,0.00011998,2]
[351750451,1738776642399,-500.0,0.00011998,2]
[351750453,1738776642408,-500.0,0.00011998,2]
[351750455,1738776642417,-500.0,0.00011998,2]
[351750457,1738776642427,-500.0,0.00011998,2]
[351750460,1738776642437,-500.0,0.00011998,2]
[351750462,1738776642447,-500.0,0.00011998,2]
[351750463,1738776642456,-505.98373294,0.00011998,2]
[351750466,1738776642466,-500.0,0.00011998,2]
[351750468,1738776642475,-500.0,0.00011998,2]
[351750469,1738776642485,-500.0,0.00011998,2]
[351750472,1738776642495,-630.97448025,0.00011998,2]
[351750474,1738776642505,-500.7131473,0.00011998,2]
[351750476,1738776642515,-500.0,0.00011998,2]
[351750478,1738776642525,-500.0,0.00011998,2]
[351750480,1738776642535,-500.0,0.00011998,2]
[351750482,1738776642545,-278.55791058,0.00011998,2]
[351750484,1738776642555,-643.1,0.00011998,2]
[351750486,1738776642566,-500.0,0.00011998,2]
[351750488,1738776642576,-500.0,0.00011998,2]
[351750490,1738776642585,-500.0,0.00011998,2]
[351750492,1738776642595,-500.0,0.00011998,2]
[351750494,1738776642605,-1000.0,0.00011998,2]
[351750496,1738776642614,-349.51831896,0.00011998,2]
[351750498,1738776642623,-500.0,0.00011998,2]
[351750500,1738776642633,-500.0,0.00011998,2]
[351750502,1738776642642,-170.16885978,0.00011998,2]
[351750504,1738776642652,-500.0,0.00011998,2]
[351750506,1738776642661,-500.0,0.00011998,2]
[351750508,1738776642671,-500.0,0.00011998,2]
[351750510,1738776642680,-500.0,0.00011998,2]
[351750512,1738776642690,-500.0,0.00011998,2]
[351750514,1738776642699,-500.0,0.00011998,2]
[351750516,1738776642709,-500.0,0.00011998,2]
[351750518,1738776642719,-560.27,0.00011998,2]
[351750520,1738776642728,-500.0,0.00011998,2]
[351750522,1738776642737,-500.0,0.00011998,2]
[351750523,1738776642749,-500.0,0.00011998,2]
[351750527,1738776642760,-498.08645493,0.00011998,2]
[351750530,1738776642769,-500.0,0.00011998,2]
[351750533,1738776642779,-500.0,0.00011998,2]
[351750536,1738776642788,-500.0,0.00011998,2]
[351750538,1738776642797,-500.0,0.00011998,2]
[351750541,1738776642806,-500.0,0.00011998,2]
[351750543,1738776642817,-500.0,0.00011998,2]
[351750546,1738776642826,-500.0,0.00011998,2]
[351750548,1738776642836,-581.42,0.00011998,2]
[351750549,1738776642845,-500.0,0.00011998,2]
[351750553,1738776642855,-500.0,0.00011998,2]
[351750556,1738776642865,-500.0,0.00011998,2]
[351750558,1738776642875,-500.0,0.00011998,2]
[351750561,1738776642885,-500.0,0.00011998,2]
[351750564,1738776642894,-500.0,0.00011998,2]
[351750567,1738776642904,-500.0,0.00011998,2]
[351750571,1738776642916,-500.0,0.00011998,2]
[351750574,1738776642931,-500.0,0.00011998,2]
[351750576,1738776642941,-566.25,0.00011998,2]
[351750579,1738776642951,-432.95,0.00011999,2]
[351750583,1738776642963,-465.33,0.00011999,2]
[351750586,1738776642973,-601.1,0.00011999,2]
[351750589,1738776642983,-500.0,0.00011999,2]
[351750591,1738776642995,-184.79,0.00011999,2]
[351750593,1738776643010,-348.26,0.00011999,2]
[351750595,1738776643019,-500.0,0.00011999,2]
[351750596,1738776643030,-500.0,0.00011999,2]
[351750598,1738776643043,-500.0,0.00011999,2]
[351750601,1738776643056,-187.36407979,0.00011999,2]
[351750603,1738776643066,-500.0,0.00011999,2]
[351750605,1738776643076,-500.0,0.00011999,2]
[351750607,1738776643086,-154.25,0.00011999,2]
[351750609,1738776643095,-501.90062906,0.00011999,2]
[351750611,1738776643105,-343.91,0.00011999,2]
[351750613,1738776643115,-500.0,0.00011999,2]
[351750615,1738776643124,-524.12,0.00011999,2]
[351750617,1738776643134,-500.0,0.00011999,2]
[351750619,1738776643143,-500.0,0.00011999,2]
[351750620,1738776643152,-486.76,0.00011999,2]
[351750622,1738776643162,-216.72,0.00011999,2]
[351750624,1738776643180,-500.0,0.00011999,2]
[351750626,1738776643195,-500.0,0.00011999,2]
[351750628,1738776643207,-500.0,0.00011999,2]
[351750630,1738776643217,-629.72,0.00011999,2]
[351750632,1738776643226,-500.0,0.00011999,2]
[351750634,1738776643235,-500.0,0.00011999,2]
[351750636,1738776643247,-500.0,0.00011999,2]
[351750638,1738776643257,-500.0,0.00011999,2]
[351750640,1738776643267,-500.0,0.00011999,2]
[351750643,1738776643276,-500.0,0.00011999,2]
[351750645,1738776643287,-149.80797817,0.00011999,2]
[351750657,1738776643398,-390.08358389,8.799e-05,2]
[351750660,1738776643409,-109.91641611,8.799e-05,2]
[351750661,1738776643418,-156.96358389,0.00011998,2]
[351750664,1738776643430,-343.03641611,0.00011998,2]
[351750666,1738776643439,-55.45612345,0.00011999,2]
[351750668,1738776643450,-294.73589838,0.00011999,2]
[351750670,1738776643459,-500.0,0.00011999,2]
[351750672,1738776643469,-500.0,0.00011999,2]
[351750674,1738776643479,-500.0,0.00011999,2]
[351750676,1738776643487,-500.0,0.00011999,2]
[351750679,1738776643501,-500.0,0.00011999,2]
[351750682,1738776643510,-213.79,0.00011999,2]
[351750684,1738776643519,-500.0,0.00011999,2]
[351750687,1738776643528,-500.0,0.00011999,2]
[351750691,1738776643538,-500.0,0.00011999,2]
[351750693,1738776643548,-500.0,0.00011999,2]
[351750696,1738776643557,-500.0,0.00011999,2]
[351750700,1738776643569,-500.0,0.00011999,2]
[351750702,1738776643578,-500.0,0.00011999,2]
[351750706,1738776643588,-500.0,0.00011999,2]
[351750709,1738776643598,-500.0,0.00011999,2]
[351750712,1738776643608,-500.0,0.00011999,2]
[351750715,1738776643617,-500.0,0.00011999,2]
[351750718,1738776643626,-500.0,0.00011999,2]
[351750721,1738776643636,-500.0,0.00011999,2]
[351750724,1738776643645,-500.0,0.00011999,2]
[351750728,1738776643655,-500.0,0.00011999,2]
[351750731,1738776643664,-500.0,0.00011999,2]
[351750734,1738776643675,-500.0,0.00011999,2]
[351750737,1738776643684,-500.0,0.00011999,2]
[351750740,1738776643694,-500.0,0.00011999,2]
[351750742,1738776643703,-501.88991541,0.00011999,2]
[351750744,1738776643712,-500.0,0.00011999,2]
[351750746,1738776643722,-108061.64418621,0.00011999,2]
[351750749,1738776643734,-39837.81317966,0.00011999,2]
[351750751,1738776643744,-936.0,0.00012,2]
[351750753,1738776643753,-153.15617549,0.00012,2]
[351750755,1738776643763,-152.0,0.00012,7]
[351750756,1738776643773,-35776.33064493,0.00012,2]
[351750811,1738776644297,-303968.33894056,0.00012,2]
[351750814,1738776644309,-2036.56987563,0.00012,2]
[351750816,1738776644321,-4879.1,0.00012,2]
[351750818,1738776644332,-1455.70805191,0.00012,2]
[351750825,1738776644521,-500.0,8.799e-05,2]
[351750827,1738776644531,-500.0,8.799e-05,2]
[351750829,1738776644541,-500.0,8.799e-05,2]
[351750831,1738776644550,-500.0,8.799e-05,2]
[351750833,1738776644561,-500.0,8.936e-05,2]
[351750835,1738776644571,-500.0,8.936e-05,2]
[351750837,1738776644580,-500.0,9.073e-05,2]
[351750839,1738776644590,-289.35,9.073e-05,2]
[351750841,1738776644599,-191.6,9.21e-05,2]
[351750843,1738776644609,-500.0,0.00011999,2]
[351750845,1738776644619,-71141.89192,0.00012,2]
[351750847,1738776644630,-396442.64800627,0.00012,2]
[351750850,1738776644651,-500.0,8.799e-05,2]
[351750852,1738776644661,-97272.8814773,0.00012,2]
[351750856,1738776644687,-500.0,0.00012,2]
[351751018,1738776646003,-500.0,8.799e-05,2]
[351751021,1738776646012,-500.0,8.799e-05,2]
[351751024,1738776646022,-500.0,8.799e-05,2]
[351751027,1738776646031,-500.0,8.799e-05,2]
[351751030,1738776646041,-252.92,8.936e-05,2]
[351751033,1738776646051,-500.0,8.936e-05,2]
[351751036,1738776646060,-500.0,0.00011998,2]
[351751038,1738776646070,-500.0,0.00011999,2]
[351751041,1738776646079,-1339.85776183,0.00012,2]
[351751047,1738776646099,-500.0,0.00011999,2]
[351751050,1738776646109,-105.44999884,0.00012,2]
[351751053,1738776646119,-9013.09349695,0.00012,2]
[351751057,1738776646139,-500.0,9.073e-05,2]
[351751060,1738776646148,-473024.69804839,0.00012,2]
[351751067,1738776646190,-1295.0,0.00012,2]
[351751074,1738776646225,-2074.25019522,0.00012,2]
[351751077,1738776646237,-42130.57332309,0.00012,2]
[351751086,1738776646282,-657.27927126,0.00012,2]
[351751088,1738776646293,-630.820596,0.00012,2]
[351751695,1738777594133,-1500.0,8.131e-05,2]
[351751696,1738777594156,-182.89039688,8.178e-05,2]
[351751697,1738777620217,384.47,8.064e-05,2]
[351751698,1738777620431,384.47,8.066e-05,2]
[351751699,1738777620662,384.47,8.068e-05,2]
[351751700,1738777621434,384.47,8.07e-05,2]
[351751701,1738777621494,384.47,8.072e-05,2]
[351751702,1738777621556,384.47,8.075e-05,2]
[351751703,1738777621609,384.47,8.077e-05,2]
[351751704,1738777621806,384.47,8.079e-05,2]
[351751705,1738777622009,384.47,8.081e-05,2]
[351751706,1738777622244,384.47,8.083e-05,2]
[351751707,1738777622468,384.47,8.085e-05,2]
[351751708,1738777622676,384.47,8.087e-05,2]
[351751709,1738777622922,384.47,8.089e-05,2]
[351751710,1738777623150,384.47,8.091e-05,2]
[351751711,1738777623358,384.47,8.094e-05,2]
[351751712,1738777623576,384.47,8.096e-05,2]
[351751713,1738777623777,384.47,8.098e-05,2]
[351751714,1738777623988,384.47,8.1e-05,2]
[351751724,1738777698329,23688.0,0.0002,120]
[351751725,1738777803203,-384.47,8.102e-05,2]
[351751726,1738777803229,-384.47,8.104e-05,2]
[351751727,1738777803252,-190.29453912,8.178e-05,2]
[351751728,1738777803275,-1219.14,8.219e-05,2]
[351751729,1738777803302,-901.49,8.227e-05,2]
[351751730,1738777803328,-3059.09,8.246e-05,2]
[351751731,1738777803593,-1138.7271,8.256e-05,2]
[351751732,1738777803622,-2000.0,8.289e-05,2]
[351751733,1738777803645,-722.31836088,8.428e-05,2]
[351751734,1738777803910,-10000.0,8.428e-05,2]
[351751735,1738777804997,-10000.0,8.428e-05,2]
[351751736,1738777806083,-3177.68163912,8.428e-05,2]
[351751737,1738777806108,-150.0,8.447e-05,2]
[351751738,1738777806131,-256.19,8.448e-05,2]
[351751739,1738777806154,-150.99,8.448e-05,2]
[351751740,1738777806175,-6265.13836088,8.448e-05,2]
[351751741,1738777807022,-5895.86163912,8.448e-05,2]
[351751742,1738777807049,-150.0,8.548e-05,2]
[351751743,1738777807071,-1852.42,8.582e-05,2]
[351751744,1738777807097,-860.2351,8.699e-05,2]
[351751745,1738777807121,-312.5143,8.699e-05,2]
[351751746,1738777807144,-928.96896088,8.7e-05,2]
[351751747,1738777810872,-1000.0,8.7e-05,2]
[351751777,1738777832169,-183.12,8.451e-05,2]
[351751779,1738777832181,-508.82858545,8.7e-05,2]
[351751781,1738777832193,-725.4122558,8.7e-05,2]
[351751785,1738777832227,-1666.75681614,8.7e-05,2]
[351751792,1738777832282,-950.74832273,8.7e-05,2]
[351751794,1738777832295,-339.28749483,8.7e-05,2]
[351751803,1738777832391,-1435.47016529,8.7e-05,2]
[351751809,1738777832447,-2074.52739888,8.7e-05,2]
[351751811,1738777832458,-500.0,8.798e-05,2]
[351751814,1738777832468,-500.0,8.798e-05,2]
[351751816,1738777832478,-500.0,8.798e-05,2]
[351751817,1738777832488,-500.0,8.798e-05,2]
[351751819,1738777832498,-573.54,8.798e-05,2]
[351751821,1738777832508,-359.93470832,8.798e-05,2]
[351751823,1738777832520,-140.06529168,8.798e-05,2]
[351751825,1738777832530,-500.0,8.798e-05,2]
[351751827,1738777832540,-500.0,8.798e-05,2]
[351751829,1738777832549,-500.0,8.798e-05,2]
[351751831,1738777832559,-500.0,8.798e-05,2]
[351751834,1738777832572,-512.27,8.798e-05,2]
[351751837,1738777832582,-500.0,8.798e-05,2]
[351751840,1738777832592,-500.0,8.798e-05,2]
[351751843,1738777832602,-500.0,8.798e-05,2]
[351751846,1738777832612,-500.0,8.798e-05,2]
[351751849,1738777832622,-500.0,8.798e-05,2]
[351751853,1738777832632,-500.0,8.798e-05,2]
[351751856,1738777832642,-500.0,8.798e-05,2]
[351751859,1738777832651,-500.0,8.798e-05,2]
[351751861,1738777832661,-500.0,8.798e-05,2]
[351751863,1738777832671,-500.0,8.798e-05,2]
[351751866,1738777832682,-500.0,8.798e-05,2]
[351751868,1738777832691,-500.0,8.798e-05,2]
[351751870,1738777832701,-155.924318,8.798e-05,2]
[351751872,1738777832710,-500.0,8.798e-05,2]
[351751874,1738777832720,-301.76850108,8.798e-05,2]
[351751876,1738777832730,-243.73,8.799e-05,2]
[351751878,1738777832739,-500.0,8.799e-05,2]
[351751880,1738777832749,-440.89,8.799e-05,2]
[351751882,1738777832759,-224.24,8.799e-05,2]
[351751884,1738777832776,-494.13,8.799e-05,2]
[351751886,1738777832786,-500.0,8.799e-05,2]
[351751887,1738777832795,-500.0,8.799e-05,2]
[351751889,1738777832804,-500.0,8.799e-05,2]
[351751891,1738777832814,-500.0,8.799e-05,2]
[351751893,1738777832826,-384.97,8.799e-05,2]
[351751895,1738777832835,-500.0,8.799e-05,2]
[351751896,1738777832844,-500.0,8.799e-05,2]
[351751897,1738777832854,-136.19121983,8.799e-05,2]
[351751898,1738777832867,-502.54878017,8.799e-05,2]
[351751899,1738777832876,-500.0,8.799e-05,2]
[351751900,1738777832886,-500.0,8.799e-05,2]
[351751901,1738777832895,-500.0,8.799e-05,2]
[351751902,1738777832905,-500.0,8.799e-05,2]
[351751903,1738777832914,-500.0,8.799e-05,2]
[351751904,1738777832924,-559.14,8.799e-05,2]
[351751905,1738777832934,-500.0,8.799e-05,2]
[351751906,1738777832943,-500.0,8.799e-05,2]
[351751907,1738777832953,-370.31121983,8.799e-05,2]
[351751908,1738777832964,-129.68878017,8.799e-05,2]
[351751909,1738777832974,-153.06376543,8.799e-05,2]
[351751920,1738777839998,-276.611373,8.754e-05,2]
[351751923,1738777840008,-500.0,8.798e-05,2]
[351751924,1738777840018,-500.0,8.798e-05,2]
[351751926,1738777840027,-500.0,8.798e-05,2]
[351751927,1738777840037,-132.74314171,8.798e-05,2]
[351751928,1738777840048,-367.25685829,8.798e-05,2]
[351751931,1738777840057,-346.93623457,8.799e-05,2]
[351751933,1738777840067,-500.0,8.799e-05,2]
[351751934,1738777840077,-500.0,8.799e-05,2]
[351751936,1738777840086,-500.0,8.799e-05,2]
[351751938,1738777840095,-500.0,8.799e-05,2]
[351751939,1738777840105,-501.50777161,8.799e-05,2]
[351751940,1738777840115,-500.0,8.799e-05,2]
[351751941,1738777840124,-500.0,8.799e-05,2]
[351751942,1738777840133,-500.0,8.799e-05,2]
[351751943,1738777840142,-500.0,8.799e-05,2]
[351751944,1738777840152,-500.0,8.799e-05,2]
[351751945,1738777840162,-500.0,8.799e-05,2]
[351751946,1738777840172,-500.0,8.799e-05,2]
[351751947,1738777840182,-500.0,8.799e-05,2]
[351751948,1738777840192,-500.0,8.799e-05,2]
[351751949,1738777840202,-500.0,8.799e-05,2]
[351751950,1738777840211,-500.0,8.799e-05,2]
[351751951,1738777840221,-595.75,8.799e-05,2]
[351751952,1738777840231,-134.87945658,8.799e-05,2]
[351751953,1738777840243,-365.12054342,8.799e-05,2]
[351751954,1738777840252,-257.75068582,8.799e-05,2]
[351751955,1738777840264,-242.24931418,8.799e-05,2]
[351751956,1738777840274,-500.0,8.799e-05,2]
[351751957,1738777840283,-94.83165298,8.799e-05,2]
[351751958,1738777840318,-405.16834702,8.799e-05,2]
[351751959,1738777840334,-500.0,8.799e-05,2]
[351751960,1738777840343,-255.91785797,8.799e-05,2]
[351751961,1738777840370,-244.08214203,8.799e-05,2]
[351751962,1738777840381,-69.75007135,8.799e-05,2]
[351751963,1738777840393,-430.24992865,8.799e-05,2]
[351751964,1738777840403,-500.0,8.799e-05,2]
[351751965,1738777840413,-500.0,8.799e-05,2]
[351751966,1738777840423,-587.31,8.799e-05,2]
[351751967,1738777840433,-500.0,8.799e-05,2]
[351751969,1738777840443,-500.0,8.799e-05,2]
[351751971,1738777840453,-627.82,8.799e-05,2]
[351751973,1738777840464,-500.0,8.799e-05,2]
[351751975,1738777840474,-610.95,8.799e-05,2]
[351751977,1738777840484,-509.02410604,8.799e-05,2]
[351751979,1738777840494,-500.0,8.799e-05,2]
[351751981,1738777840504,-500.0,8.799e-05,2]
[351751983,1738777840514,-500.0,8.799e-05,2]
[351751985,1738777840524,-500.0,8.799e-05,2]
[351751987,1738777840534,-507.65179722,8.799e-05,2]
[351751989,1738777840543,-500.0,8.799e-05,2]
[351751991,1738777840553,-500.0,8.799e-05,2]
[351751993,1738777840563,-500.0,8.799e-05,2]
[351751995,1738777840573,-500.0,8.799e-05,2]
[351751997,1738777840586,-500.0,8.799e-05,2]
[351751999,1738777840597,-500.0,8.799e-05,2]
[351752001,1738777840606,-186.84658019,8.799e-05,2]
[351752003,1738777840616,-630.1,8.799e-05,2]
[351752005,1738777840626,-500.0,8.799e-05,2]
[351752007,1738777840635,-502.31449212,8.799e-05,2]
[351752009,1738777840645,-500.0,8.799e-05,2]
[351752011,1738777840656,-500.0,8.799e-05,2]
[351752013,1738777840665,-500.0,8.799e-05,2]
[351752015,1738777840675,-500.0,8.799e-05,2]
[351752017,1738777840685,-500.0,8.799e-05,2]
[351752019,1738777840696,-500.0,8.799e-05,2]
[351752021,1738777840706,-500.0,8.799e-05,2]
[351752023,1738777840715,-500.0,8.799e-05,2]
[351752025,1738777840725,-415.78,8.799e-05,2]
[351752027,1738777840734,-500.0,8.799e-05,2]
[351752029,1738777840744,-500.0,8.799e-05,2]
[351752031,1738777840753,-608.98,8.799e-05,2]
[351752033,1738777840763,-500.0,8.799e-05,2]
[351752035,1738777840773,-500.0,8.799e-05,2]
[351752037,1738777840782,-500.0,8.799e-05,2]
[351752039,1738777840792,-500.0,8.799e-05,2]
[351752041,1738777840801,-500.0,8.799e-05,2]
[351752043,1738777840810,-500.0,8.799e-05,2]
[351752045,1738777840819,-500.0,8.799e-05,2]
[351752047,1738777840832,-500.0,8.799e-05,2]
[351752049,1738777840841,-377.10220632,8.799e-05,2]
[351752051,1738777840851,-500.0,8.799e-05,2]
[351752053,1738777840860,-386.04,8.799e-05,2]
[351752055,1738777840870,-500.0,8.799e-05,2]
[351752057,1738777840879,-581.42,8.799e-05,2]
[351752059,1738777840889,-500.0,8.799e-05,2]
[351752061,1738777840898,-500.0,8.799e-05,2]
[351752063,1738777840908,-500.0,8.799e-05,2]
[351752064,1738777840917,-500.0,8.799e-05,2]
[351752067,1738777840927,-500.0,8.799e-05,2]
[351752069,1738777840937,-500.0,8.799e-05,2]
[351752071,1738777840946,-500.0,8.799e-05,2]
[351752073,1738777840955,-500.0,8.799e-05,2]
[351752074,1738777840964,-500.0,8.799e-05,2]
[351752076,1738777840973,-500.0,8.799e-05,2]
[351752078,1738777840982,-500.0,8.799e-05,2]
[351752080,1738777840992,-500.0,8.799e-05,2]
[351752082,1738777841001,-500.0,8.799e-05,2]
[351752084,1738777841011,-566.25,8.799e-05,2]
[351752086,1738777841020,-502.97759333,8.799e-05,2]
[351752088,1738777841030,-500.0,8.799e-05,2]
[351752090,1738777841039,-500.0,8.799e-05,2]
[351752092,1738777841048,-500.0,8.799e-05,2]
[351752094,1738777841057,-500.0,8.799e-05,2]
[351752096,1738777841066,-500.0,8.799e-05,2]
[351752098,1738777841077,-526.14,8.799e-05,2]
[351752100,1738777841087,-550.35,8.799e-05,2]
[351752102,1738777841096,-500.0,8.799e-05,2]
[351752104,1738777841105,-500.0,8.799e-05,2]
[351752106,1738777841115,-500.0,8.799e-05,2]
[351752108,1738777841124,-500.0,8.799e-05,2]
[351752110,1738777841134,-500.0,8.799e-05,2]
[351752112,1738777841143,-500.0,8.799e-05,2]
[351752114,1738777841152,-536.36402145,8.799e-05,2]
[351752116,1738777841161,-222.43,8.799e-05,2]
[351752118,1738777841171,-500.0,8.799e-05,2]
[351752120,1738777841180,-500.0,8.799e-05,2]
[351752122,1738777841190,-500.0,8.799e-05,2]
[351752124,1738777841199,-547.7,8.799e-05,2]
[351752126,1738777841208,-500.0,8.799e-05,2]
[351752128,1738777841218,-500.0,8.799e-05,2]
[351752130,1738777841227,-500.0,8.799e-05,2]
[351752132,1738777841236,-500.0,8.799e-05,2]
[351752134,1738777841245,-575.04,8.799e-05,2]
[351752136,1738777841255,-500.0,8.799e-05,2]
[351752138,1738777841264,-500.0,8.799e-05,2]
[351752140,1738777841274,-500.0,8.799e-05,2]
[351752142,1738777841283,-500.0,8.799e-05,2]
[351752144,1738777841293,-500.0,8.799e-05,2]
[351752146,1738777841302,-500.0,8.799e-05,2]
[351752148,1738777841311,-583.2680394,8.799e-05,2]
[351752150,1738777841320,-500.0,8.799e-05,2]
[351752152,1738777841341,-500.0,8.799e-05,2]
[351752154,1738777841351,-500.0,8.799e-05,2]
[351752156,1738777841360,-500.0,8.799e-05,2]
[351752158,1738777841369,-500.0,8.799e-05,2]
[351752160,1738777841380,-500.0,8.799e-05,2]
[351752162,1738777841390,-500.0,8.799e-05,2]
[351752164,1738777841400,-604.87,8.799e-05,2]
[351752166,1738777841411,-412.87,8.799e-05,2]
[351752168,1738777841421,-500.0,8.799e-05,2]
[351752170,1738777841430,-500.0,8.799e-05,2]
[351752172,1738777841440,-500.0,8.799e-05,2]
[351752174,1738777841450,-500.0,8.799e-05,2]
[351752176,1738777841459,-501.90062906,8.799e-05,2]
[351752178,1738777841469,-500.0,8.799e-05,2]
[351752180,1738777841478,-500.0,8.799e-05,2]
[351752182,1738777841487,-500.0,8.799e-05,2]
[351752184,1738777841496,-500.0,8.799e-05,2]
[351752186,1738777841505,-500.0,8.799e-05,2]
[351752187,1738777841514,-500.0,8.799e-05,2]
[351752188,1738777841523,-500.0,8.799e-05,2]
[351752189,1738777841532,-522.05,8.799e-05,2]
[351752190,1738777841541,-500.0,8.799e-05,2]
[351752191,1738777841550,-500.0,8.799e-05,2]
[351752192,1738777841559,-500.0,8.799e-05,2]
[351752193,1738777841568,-500.0,8.799e-05,2]
[351752194,1738777841579,-428.91,8.799e-05,2]
[351752195,1738777841589,-587.65,8.799e-05,2]
[351752196,1738777841598,-610.7,8.799e-05,2]
[351752197,1738777841607,-500.0,8.799e-05,2]
[351752198,1738777841616,-500.0,8.799e-05,2]
[351752199,1738777841625,-500.0,8.799e-05,2]
[351752200,1738777841634,-500.0,8.799e-05,2]
[351752201,1738777841643,-342.65341001,8.799e-05,7]
[351752202,1738777841652,-500.0,8.799e-05,2]
[351752203,1738777841661,-500.0,8.799e-05,2]
[351752205,1738777841670,-500.0,8.799e-05,2]
[351752206,1738777841680,-500.0,8.799e-05,2]
[351752208,1738777841689,-500.0,8.799e-05,2]
[351752210,1738777841699,-500.0,8.799e-05,2]
[351752212,1738777841708,-500.0,8.799e-05,2]
[351752214,1738777841718,-520.75,8.799e-05,2]
[351752216,1738777841727,-500.0,8.799e-05,2]
[351752218,1738777841736,-500.0,8.799e-05,2]
[351752220,1738777841746,-500.0,8.799e-05,2]
[351752222,1738777841755,-500.0,8.799e-05,2]
[351752224,1738777841764,-507.98247047,8.799e-05,2]
[351752226,1738777841774,-500.0,8.799e-05,2]
[351752228,1738777841783,-500.0,8.799e-05,2]
[351752230,1738777841792,-500.0,8.799e-05,2]
[351752232,1738777841802,-500.0,8.799e-05,2]
[351752234,1738777841817,-500.0,8.799e-05,2]
[351752236,1738777841828,-500.0,8.799e-05,2]
[351752238,1738777841837,-500.0,8.799e-05,2]
[351752240,1738777841847,-500.0,8.799e-05,2]
[351752242,1738777841856,-500.0,8.799e-05,2]
[351752244,1738777841866,-506.52513416,8.799e-05,2]
[351752246,1738777841875,-304.93695175,8.799e-05,2]
[351752248,1738777841885,-500.0,8.799e-05,2]
[351752250,1738777841894,-500.0,8.799e-05,2]
[351752251,1738777841903,-500.0,8.799e-05,2]
[351752253,1738777841913,-500.0,8.799e-05,2]
[351752255,1738777841922,-526.92,8.799e-05,2]
[351752258,1738777841932,-500.0,8.799e-05,2]
[351752259,1738777841942,-500.0,8.799e-05,2]
[351752261,1738777841951,-500.0,8.799e-05,2]
[351752263,1738777841960,-500.0,8.799e-05,2]
[351752265,1738777841969,-500.0,8.799e-05,2]
[351752267,1738777841979,-500.0,8.799e-05,2]
[351752269,1738777841989,-500.0,8.799e-05,2]
[351752271,1738777841998,-500.0,8.799e-05,2]